bitfinex/quotes_SOLUSD_20220307
["timestamp","ask_amount","ask_price","bid_price","bid_amount"]
[1646691826805,0.25,82.119,82.065,0.25]
[1646691827004,0.25,82.119,82.066,6.09]
[1646691827206,0.25,82.119,82.067,0.25]
[1646691827408,18.2797,82.12,82.068,6.09]
[1646691827605,6.0,82.127,82.072,0.35869575]
[1646691827805,6.0,82.136,82.074,0.35869575]
[1646691828004,6.0,82.136,82.076,0.35869575]
[1646691828203,6.0,82.136,82.078,0.35869575]
[1646691828403,1.64488238,82.165,82.08,0.35869575]
[1646691828603,1.64488238,82.165,82.081,128.188]
[1646691828818,1.64488238,82.166,82.084,0.35869575]
[1646691829019,1.64488238,82.166,82.085,128.188]
[1646691829216,0.25,82.165,82.087,122.1]
[1646691829418,0.25,82.165,82.089,122.1]
[1646691829620,0.25,82.166,82.091,122.1]
[1646691829818,0.25,82.166,82.1,18.2699]
[1646691830019,1.64488238,82.167,82.102,122.1]
[1646691830220,1.64488238,82.172,82.104,122.1]
[1646691830421,1.64488238,82.171,82.106,122.1]
[1646691830619,1.64488238,82.174,82.108,122.1]
[1646691830819,1.64488238,82.178,82.11,122.1]
[1646691831017,1.64488238,82.18,82.112,122.1]
[1646691831220,1.64488238,82.181,82.121,122.1]
[1646691831417,1.64488238,82.182,82.123,122.1]
[1646691831622,1.64488238,82.182,82.124,0.25]
[1646691831818,1.64488238,82.182,82.125,122.1]
[1646691832118,6.25,82.181,82.13,18.2631]
[1646691832319,6.0,82.18,82.132,122.1]
[1646691832520,1.64488238,82.184,82.133,0.25]
[1646691832721,6.0,82.183,82.133,0.25]
[1646691832920,1.64488238,82.187,82.134,6.085]
[1646691833123,7.64488238,82.186,82.135,0.25]
[1646691833321,1.64488238,82.185,82.136,6.085]
[1646691833521,1.64488238,82.185,82.137,0.25]
[1646691833820,0.25,82.184,82.138,6.085]
[1646691834023,30.81284183,82.195,82.138,6.085]
[1646691834024,1.89488238,82.186,82.139,0.25]
[1646691834224,1.89488238,82.186,82.14,18.2631]
[1646691834422,1.64488238,82.184,82.141,0.25]
[1646691834621,0.25,82.183,82.141,0.25]
[1646691835522,1.89488238,82.183,82.141,0.25]
[1646691835723,6.0,82.182,82.141,0.25]
[1646691835922,0.25,82.181,82.141,0.25]
[1646691836123,0.25,82.183,82.141,0.25]
[1646691836733,0.25,82.183,82.14,18.2631]
[1646691836929,18.266,82.18,82.125,6.085]
[1646691837228,0.25,82.179,82.126,0.25]
[1646691838031,31.23360441,82.169,82.126,0.25]
[1646691838231,0.25,82.168,82.126,0.25]
[1646691839031,0.25,82.168,82.125,6.085]
[1646691839237,18.2708,82.16,82.125,6.085]
[1646691839433,0.25,82.159,82.125,6.085]
[1646691840833,0.25,82.168,82.125,6.085]
[1646691841235,6.25,82.168,82.125,6.085]
[1646691841836,6.25,82.168,82.11,43.111]
[1646691842034,7.89488238,82.168,82.111,0.25]
[1646691842333,1.64488238,82.167,82.111,0.25]
[1646691842532,0.25,82.166,82.111,0.25]
[1646691843433,1.89488238,82.166,82.111,0.25]
[1646691843633,0.25,82.166,82.111,0.25]
[1646691844034,1.89488238,82.166,82.111,0.25]
[1646691844337,1.64488238,82.163,82.111,0.25]
[1646691844534,0.25,82.162,82.111,0.25]
[1646691844736,1.89488238,82.162,82.111,0.25]
[1646691844934,0.25,82.162,82.111,0.25]
[1646691845533,1.89488238,82.162,82.111,0.25]
[1646691846540,1.64488238,82.159,82.111,0.25]
[1646691846739,6.0,82.161,82.111,0.25]
[1646691846740,1.89488238,82.158,82.111,0.25]
[1646691848142,1.64488238,82.157,82.111,0.25]
[1646691848343,0.25,82.156,82.111,0.25]
[1646691848542,1.64488238,82.152,82.111,0.25]
[1646691848743,1.64488238,82.151,82.111,0.25]
[1646691848942,1.64488238,82.151,82.1,18.2718]
[1646691848943,1.64488238,82.149,82.101,0.25]
[1646691849547,1.64488238,82.149,82.095,0.25]
[1646691849744,1.64488238,82.148,82.095,0.25]
[1646691850146,1.64488238,82.15,82.11,18.2697]
[1646691850346,1.64488238,82.155,82.111,0.25]
[1646691850547,1.64488238,82.154,82.111,0.25]
[1646691850748,1.64488238,82.153,82.111,0.25]
[1646691851149,1.64488238,82.153,82.12,18.2653]
[1646691851349,1.64488238,82.154,82.121,0.25]
[1646691852152,1.64488238,82.156,82.121,0.25]
[1646691852350,1.64488238,82.158,82.111,0.25]
[1646691852550,1.64488238,82.154,82.111,0.25]
[1646691852949,1.64488238,82.154,82.12,18.2673]
[1646691853150,1.64488238,82.153,82.121,0.25]
[1646691853351,1.64488238,82.154,82.121,0.25]
[1646691853553,1.64488238,82.154,82.12,18.2673]
[1646691854453,1.64488238,82.149,82.12,18.2673]
[1646691854853,1.64488238,82.151,82.12,18.2673]
[1646691855068,1.64488238,82.151,82.121,0.25]
[1646691855268,1.64488238,82.15,82.121,0.25]
[1646691855470,1.64488238,82.151,82.121,0.25]
[1646691855672,1.64488238,82.15,82.121,0.25]
[1646691855870,1.64488238,82.149,82.121,0.25]
[1646691856275,1.64488238,82.15,82.121,0.25]
[1646691856471,1.64488238,82.142,82.121,0.25]
[1646691856677,1.64488238,82.141,82.121,0.25]
[1646691858275,1.64488238,82.141,82.13,18.2655]
[1646691858474,1.64488238,82.141,82.131,0.25]
[1646691859681,1.64488238,82.142,82.131,0.25]
[1646691860280,1.64488238,82.141,82.131,0.25]
[1646691860480,1.64488238,82.142,82.131,0.25]
[1646691860685,1.64488238,82.141,82.131,0.25]
[1646691862083,1.64488238,82.14,82.131,0.25]
[1646691864283,1.64488238,82.141,82.131,0.25]
[1646691864484,1.64488238,82.144,82.131,122.35]
[1646691864682,1.64488238,82.151,82.131,122.35]
[1646691864886,1.64488238,82.153,82.133,122.1]
[1646691865082,1.64488238,82.153,82.14,18.262]
[1646691865284,6.61114868,82.188,82.141,0.25]
[1646691865285,1.64488238,82.154,82.141,0.25]
[1646691865683,1.64488238,82.153,82.141,0.25]
[1646691865884,1.64488238,82.157,82.141,0.25]
[1646691866484,1.64488238,82.158,82.141,0.25]
[1646691866888,1.64488238,82.161,82.142,6.086]
[1646691867086,1.64488238,82.161,82.143,0.25]
[1646691867886,3.26876896,82.184,82.143,0.25]
[1646691867887,1.64488238,82.164,82.143,0.25]
[1646691868086,1.64488238,82.167,82.143,0.25]
[1646691868288,1.64488238,82.167,82.15,18.2603]
[1646691868486,1.64488238,82.167,82.151,0.25]
[1646691868690,1.64488238,82.174,82.152,6.085]
[1646691868888,1.64488238,82.187,82.153,0.25]
[1646691869288,1.64488238,82.187,82.16,18.2568]
[1646691869488,1.64488238,82.187,82.161,0.25]
[1646691870089,1.64488238,82.186,82.161,0.25]
[1646691871292,1.64488238,82.185,82.161,0.25]
[1646691871993,1.64488238,82.188,82.161,0.25]
[1646691872192,1.64488238,82.187,82.161,0.25]
[1646691872391,1.64488238,82.188,82.161,0.25]
[1646691873693,1.64488238,82.189,82.161,18.3814]
[1646691874793,1.14488238,82.189,82.161,18.3814]
[1646691874994,24.4003,82.207,82.161,18.3814]
[1646691875195,6.0,82.206,82.162,23.6888]
[1646691875392,6.0,82.206,82.163,0.25]
[1646691877395,3.26876896,82.216,82.163,0.25]
[1646691877594,6.25,82.215,82.163,0.25]
[1646691877896,6.60850195,82.214,82.163,0.25]
[1646691878194,0.25,82.213,82.163,0.25]
[1646691878394,6.60850195,82.212,82.163,0.25]
[1646691878597,0.25,82.211,82.163,0.25]
[1646691878797,6.60850195,82.21,82.163,0.25]
[1646691878995,0.25,82.209,82.163,0.25]
[1646691879700,6.60857611,82.208,82.163,0.25]
[1646691880098,3.26876896,82.217,82.17,18.256]
[1646691880300,3.26876896,82.221,82.171,0.25]
[1646691880502,9.87734507,82.227,82.171,0.25]
[1646691880698,6.60857611,82.227,82.171,0.25]
[1646691881321,44.27881724,82.226,82.171,0.25]
[1646691881601,6.60857611,82.225,82.171,0.25]
[1646691882403,9.87734507,82.227,82.171,0.25]
[1646691882907,29.47645566,82.226,82.171,0.25]
[1646691883104,6.60857611,82.225,82.171,0.25]
[1646691883703,6.60857611,82.225,82.17,18.256]
[1646691884905,6.60857611,82.227,82.171,0.25]
[1646691885611,33.09262735,82.226,82.171,0.25]
[1646691885912,3.26876896,82.234,82.18,18.2539]
[1646691886110,3.26876896,82.251,82.182,0.28684478]
[1646691886307,3.26876896,82.254,82.182,0.28684478]
[1646691886507,4.42073217,82.262,82.183,122.1]
[1646691886707,6.60529732,82.261,82.185,122.38879644]
[1646691886910,6.60529732,82.261,82.2,18.2476]
[1646691887108,6.60529732,82.261,82.201,23.5837]
[1646691887310,6.25,82.26,82.201,23.5837]
[1646691887710,6.0,82.259,82.201,23.5837]
[1646691887909,0.25,82.26,82.201,23.5837]
[1646691888113,18.2486,82.26,82.201,23.5837]
[1646691888313,0.25,82.259,82.201,23.5837]
[1646691890733,6.25,82.259,82.201,23.5837]
[1646691892134,6.25,82.259,82.201,23.3337]
[1646691892335,18.2514,82.25,82.182,22.9434]
[1646691892536,22.5384,82.249,82.182,22.9434]
[1646691892734,6.25,82.248,82.182,22.9434]
[1646691893033,9.08613526,82.248,82.182,22.9434]
[1646691893236,2.83613526,82.247,82.182,22.9434]
[1646691893434,0.25,82.246,82.183,6.0]
[1646691893636,33.3812053,82.229,82.183,6.0]
[1646691894834,18.2561,82.23,82.183,6.0]
[1646691895037,0.25,82.229,82.183,6.0]
[1646691895738,0.25,82.229,82.184,0.25]
[1646691895937,33.58403798,82.229,82.182,22.9434]
[1646691896336,18.2532,82.24,82.183,0.25]
[1646691897137,24.7561,82.239,82.183,0.25]
[1646691897346,32.50102904,82.237,82.183,0.25]
[1646691897738,0.25,82.236,82.183,0.25]
[1646691898137,0.25,82.236,82.19,18.2522]
[1646691898539,6.0,82.238,82.191,0.25]
[1646691898738,3.26876896,82.257,82.191,122.35]
[1646691898939,3.26876896,82.257,82.191,128.84]
[1646691899139,6.6051372,82.261,82.2,18.2486]
[1646691899339,6.6051372,82.261,82.191,128.84]
[1646691899340,28.02486896,82.267,82.201,23.438]
[1646691899640,6.60509136,82.261,82.201,23.438]
[1646691900038,24.7561,82.267,82.201,23.438]
[1646691900241,6.0,82.261,82.202,122.1]
[1646691900439,3.26876896,82.272,82.211,122.1]
[1646691900641,26.82386896,82.28,82.213,122.1]
[1646691900842,23.5551,82.28,82.214,0.25]
[1646691901440,23.5551,82.28,82.221,122.1]
[1646691901641,23.5551,82.28,82.222,0.25]
[1646691901841,3.26876896,82.282,82.222,23.8107]
[1646691902141,3.26876896,82.281,82.222,23.8107]
[1646691902342,3.26876896,82.282,82.222,23.8107]
[1646691902542,3.26876896,82.282,82.23,18.2431]
[1646691903543,3.26876896,82.283,82.231,0.25]
[1646691903748,3.26876896,82.285,82.231,0.25]
[1646691904045,26.08616896,82.288,82.231,0.25]
[1646691904344,6.0,82.261,82.24,18.2414]
[1646691904549,6.0,82.261,82.241,0.25]
[1646691906446,6.0,82.261,82.24,18.2414]
[1646691906746,3.26876896,82.295,82.24,18.2414]
[1646691906945,3.26876896,82.298,82.24,18.2414]
[1646691907345,3.26876896,82.297,82.24,18.2414]
[1646691907748,18.2416,82.29,82.241,0.25]
[1646691908646,3.26876896,82.297,82.241,0.25]
[1646691909048,3.26876896,82.295,82.241,0.25]
[1646691909749,31.15518413,82.283,82.241,0.25]
[1646691909948,31.15518413,82.283,82.231,0.25]
[1646691911850,31.15518413,82.283,82.231,6.25]
[1646691912852,31.15518413,82.283,82.222,23.5607]
[1646691913457,31.15518413,82.283,82.19,2.83613526]
[1646691913853,0.90196321,82.262,82.191,122.1]
[1646691914056,0.90196321,82.262,82.205,17.99]
[1646691914452,0.90196321,82.262,82.19,2.83613526]
[1646691914653,0.90196321,82.262,82.191,6.0]
[1646691915053,0.90196321,82.262,82.192,0.25]
[1646691915257,18.2491,82.26,82.2,18.2472]
[1646691915453,18.2491,82.26,82.201,30.0022]
[1646691916155,18.2491,82.26,82.202,122.1]
[1646691916354,0.90196321,82.262,82.21,18.2469]
[1646691916555,0.90196321,82.262,82.211,0.25]
[1646691918856,18.2482,82.26,82.211,0.25]
[1646691920560,18.2482,82.26,82.201,23.7522]
[1646691920759,18.2519,82.25,82.202,0.25]
[1646691920963,34.27894099,82.249,82.202,0.25]
[1646691921361,0.25,82.259,82.202,0.25]
[1646691921861,0.25,82.26,82.202,0.25]
[1646691922062,6.60460551,82.259,82.202,0.25]
[1646691922363,0.25,82.258,82.202,0.25]
[1646691923189,0.25,82.259,82.202,0.25]
[1646691924290,6.6045094,82.258,82.202,0.25]
[1646691924490,0.25,82.257,82.202,0.25]
[1646691925594,18.2505,82.25,82.202,0.25]
[1646691925791,18.2505,82.25,82.201,0.25]
[1646691925992,0.25,82.258,82.201,0.25]
[1646691926300,6.60561689,82.257,82.21,18.2473]
[1646691926490,0.25,82.256,82.21,18.2473]
[1646691927293,6.60559319,82.255,82.21,18.2473]
[1646691927493,0.25,82.254,82.21,18.2473]
[1646691927897,6.60559319,82.253,82.21,18.2473]
[1646691928093,0.25,82.252,82.21,18.2473]
[1646691928295,0.25,82.254,82.202,6.08]
[1646691928496,0.25,82.254,82.203,0.25]
[1646691928695,6.60571207,82.253,82.204,6.08]
[1646691928900,0.25,82.252,82.205,0.25]
[1646691929095,6.60571207,82.251,82.206,6.08]
[1646691929298,0.25,82.25,82.207,0.25]
[1646691929495,0.25,82.25,82.208,6.08]
[1646691929695,0.25,82.25,82.209,0.25]
[1646691930297,0.25,82.257,82.21,18.2476]
[1646691930497,6.60550793,82.256,82.21,18.2476]
[1646691930702,0.25,82.255,82.21,18.2476]
[1646691930998,6.60550793,82.254,82.21,18.2476]
[1646691931298,0.25,82.253,82.209,0.25]
[1646691931502,0.25,82.253,82.205,0.25]
[1646691931698,0.25,82.253,82.206,6.08]
[1646691931898,6.60554106,82.252,82.207,0.25]
[1646691932100,0.25,82.251,82.208,6.08]
[1646691932298,0.25,82.251,82.209,0.25]
[1646691932502,0.25,82.251,82.21,6.08]
[1646691933102,6.0,82.258,82.21,6.08]
[1646691933402,6.0,82.258,82.211,0.25]
[1646691933602,23.2882,82.259,82.212,6.08]
[1646691933803,23.2882,82.259,82.213,0.25]
[1646691934009,23.2882,82.259,82.214,6.08]
[1646691934206,3.26876896,82.266,82.215,24.5078]
[1646691934402,0.25,82.265,82.216,6.079]
[1646691934603,6.60484919,82.261,82.217,0.25]
[1646691934805,3.26876896,82.268,82.22,18.2452]
[1646691935103,3.26876896,82.291,82.223,73.51091249]
[1646691935310,3.26876896,82.293,82.23,122.1]
[1646691935504,3.26876896,82.3,82.233,0.29871819]
[1646691935702,3.26876896,82.303,82.234,128.179]
[1646691935905,3.26876896,82.31,82.24,18.2322]
[1646691936102,3.26876896,82.312,82.241,134.428]
[1646691936509,3.26876896,82.312,82.243,122.1]
[1646691936705,23.241,82.316,82.245,122.1]
[1646691936904,23.241,82.316,82.247,122.1]
[1646691937104,23.241,82.316,82.251,122.1]
[1646691937305,0.25,82.315,82.253,122.1]
[1646691937504,0.25,82.315,82.252,12.328]
[1646691937505,0.25,82.315,82.255,122.1]
[1646691937710,0.25,82.315,82.257,122.1]
[1646691937907,3.26876896,82.324,82.258,0.25]
[1646691938106,3.26876896,82.331,82.261,122.1]
[1646691938309,6.59948906,82.343,82.272,0.35671561]
[1646691938509,3.26876896,82.352,82.274,0.35671561]
[1646691938707,6.59725987,82.355,82.276,0.35671561]
[1646691938908,3.26876896,82.36,82.282,0.35671561]
[1646691939112,3.26876896,82.363,82.284,0.35671561]
[1646691939309,3.26876896,82.361,82.291,122.1]
[1646691939509,3.26876896,82.363,82.294,0.35671561]
[1646691939810,3.26876896,82.363,82.296,0.35671561]
[1646691940108,6.0,82.362,82.297,6.073]
[1646691940309,2.83613526,82.379,82.299,0.26427851]
[1646691940511,23.4336,82.387,82.312,0.26427851]
[1646691940709,6.59613235,82.386,82.314,0.26427851]
[1646691940911,6.59613235,82.386,82.315,6.071]
[1646691941115,6.59613235,82.386,82.317,122.1]
[1646691941310,3.26876896,82.394,82.321,122.1]
[1646691941510,3.26876896,82.403,82.341,122.1]
[1646691941713,3.26876896,82.405,82.344,0.2728081]
[1646691941910,3.26876896,82.415,82.345,6.069]
[1646691942111,3.26876896,82.415,82.346,0.25]
[1646691942313,6.59503606,82.418,82.348,0.22801937]
[1646691942512,6.59503606,82.418,82.36,18.2117]
[1646691942513,6.0,82.417,82.36,18.2117]
[1646691942713,6.0,82.417,82.361,0.25]
[1646691942910,22.95679797,82.419,82.362,6.067]
[1646691943115,24.9501313,82.416,82.363,0.25]
[1646691943717,24.9501313,82.416,82.35,18.2126]
[1646691944113,47.8183313,82.428,82.35,18.2126]
[1646691944316,47.8183313,82.428,82.35,26.4726]
[1646691944515,33.45574017,82.427,82.351,6.067]
[1646691944714,33.45574017,82.427,82.351,128.167]
[1646691944915,58.40587147,82.427,82.351,128.167]
[1646691945113,58.40587147,82.427,82.352,0.25]
[1646691945314,6.25,82.426,82.353,6.067]
[1646691945515,6.0,82.426,82.355,122.1]
[1646691945713,6.0,82.426,82.356,0.25]
[1646691946715,6.0,82.426,82.357,6.067]
[1646691946917,6.0,82.426,82.358,0.25]
[1646691947117,6.0,82.426,82.359,6.067]
[1646691947418,0.25,82.425,82.36,0.25]
[1646691947616,0.25,82.425,82.361,6.067]
[1646691947815,0.25,82.425,82.362,0.25]
[1646691948017,0.25,82.425,82.363,6.067]
[1646691948220,0.25,82.425,82.364,0.25]
[1646691948415,0.25,82.425,82.365,6.067]
[1646691948617,0.25,82.425,82.366,0.25]
[1646691948815,0.25,82.425,82.367,6.067]
[1646691949016,0.25,82.425,82.368,0.25]
[1646691949218,0.25,82.425,82.369,6.067]
[1646691949420,0.25,82.425,82.37,0.25]
[1646691949819,0.31,82.427,82.37,0.25]
[1646691950217,0.31,82.427,82.371,6.067]
[1646691950417,0.31,82.427,82.372,0.25]
[1646691950618,0.31,82.427,82.373,6.067]
[1646691950818,0.31,82.427,82.374,0.25]
[1646691951028,0.31,82.427,82.375,6.067]
[1646691951222,0.31,82.427,82.376,0.25]
[1646691951420,0.31,82.427,82.377,6.067]
[1646691951622,0.06,82.427,82.378,0.25]
[1646691951819,0.06,82.427,82.379,6.067]
[1646691952719,0.06,82.427,82.39,18.2031]
[1646691952919,0.06,82.427,82.392,0.27628797]
[1646691953119,0.06,82.427,82.394,0.27628797]
[1646691953320,0.06,82.427,82.396,0.27628797]
[1646691953526,0.06,82.427,82.398,0.27628797]
[1646691953723,0.06,82.427,82.4,0.27628797]
[1646691953922,0.06,82.427,82.402,0.27628797]
[1646691954121,0.06,82.427,82.404,0.27628797]
[1646691954323,0.06,82.427,82.408,122.1]
[1646691954530,578.23902655,82.55,82.408,122.1]
[1646691954531,0.06,82.459,82.411,0.54537546]
[1646691954722,0.06,82.459,82.413,0.54537546]
[1646691954922,0.06,82.459,82.42,18.1858]
[1646691955126,0.06,82.459,82.422,0.54537546]
[1646691955524,0.06,82.459,82.424,0.54537546]
[1646691955923,0.06,82.459,82.413,0.54537546]
[1646691956124,0.06,82.459,82.414,6.065]
[1646691956348,0.06,82.459,82.412,6.065]
[1646691956550,0.06,82.459,82.413,0.54537546]
[1646691956748,0.06,82.459,82.415,0.54537546]
[1646691956947,0.06,82.459,82.416,6.065]
[1646691957150,0.06,82.459,82.414,0.54537546]
[1646691957449,0.06,82.459,82.412,0.54537546]
[1646691958048,0.06,82.459,82.412,6.79537546]
[1646691958250,0.06,82.459,82.414,0.54537546]
[1646691958455,18.2019,82.49,82.416,0.54537546]
[1646691958649,18.2019,82.49,82.416,0.25]
[1646691959052,33.09338736,82.489,82.411,17.7873]
[1646691959252,6.0,82.488,82.412,6.064]
[1646691959450,0.25,82.487,82.41,6.064]
[1646691959654,3.08613526,82.487,82.411,6.0]
[1646691959851,53.72269484,82.487,82.412,6.064]
[1646691960053,53.47269484,82.486,82.412,6.064]
[1646691960256,18.2034,82.48,82.372,6.064]
[1646691960455,0.25,82.479,82.373,6.0]
[1646691960654,2.83613526,82.479,82.374,6.066]
[1646691960854,0.25,82.478,82.375,6.0]
[1646691961055,30.1777363,82.478,82.376,6.066]
[1646691961254,38.7585049,82.476,82.377,6.0]
[1646691961455,0.25,82.475,82.378,6.066]
[1646691961654,0.25,82.475,82.379,6.25]
[1646691961854,0.25,82.475,82.38,6.065]
[1646691962054,0.25,82.475,82.381,6.25]
[1646691962259,0.25,82.475,82.382,6.065]
[1646691962555,0.25,82.475,82.383,6.25]
[1646691962756,0.25,82.475,82.384,6.065]
[1646691962956,0.25,82.475,82.385,6.0]
[1646691963157,18.2052,82.47,82.386,6.065]
[1646691963456,0.25,82.469,82.387,6.0]
[1646691963658,0.25,82.475,82.388,6.065]
[1646691963957,2.83613526,82.468,82.372,6.065]
[1646691964158,153.80678232,82.459,82.354,6.066]
[1646691964458,3.08613526,82.458,82.354,6.066]
[1646691964657,57.33009725,82.458,82.354,6.066]
[1646691964860,152.0277363,82.457,82.346,6.067]
[1646691965057,0.25,82.456,82.354,6.067]
[1646691965258,57.33009725,82.456,82.354,6.067]
[1646691965459,124.93613526,82.455,82.354,6.067]
[1646691965659,0.25,82.454,82.354,6.067]
[1646691965958,122.1,82.453,82.354,6.067]
[1646691966159,18.2134,82.44,82.354,6.067]
[1646691966365,31.34927593,82.439,82.354,6.067]
[1646691966761,34.18541119,82.439,82.354,6.067]
[1646691966961,2.83613526,82.438,82.354,6.067]
[1646691967161,0.25,82.437,82.354,6.067]
[1646691967363,6.25,82.437,82.331,6.067]
[1646691967561,2.83613526,82.436,82.331,6.067]
[1646691967761,0.25,82.435,82.332,6.0]
[1646691967962,0.25,82.435,82.333,6.319]
[1646691968162,122.1,82.429,82.333,6.319]
[1646691968361,0.25,82.428,82.333,6.319]
[1646691969262,36.25000413,82.419,82.34,18.214]
[1646691969463,0.25,82.418,82.341,6.319]
[1646691969662,0.25,82.418,82.341,6.069]
[1646691969861,0.25,82.418,82.342,0.25]
[1646691970065,0.25,82.418,82.343,6.069]
[1646691970265,0.25,82.418,82.344,0.25]
[1646691970666,18.2182,82.41,82.331,6.069]
[1646691970865,18.2182,82.41,82.285,17.8671]
[1646691970866,0.25,82.409,82.321,6.07]
[1646691971065,9.08613526,82.409,82.317,6.07]
[1646691971465,6.25,82.409,82.317,6.07]
[1646691971664,0.25,82.409,82.317,128.17]
[1646691972064,32.24455741,82.423,82.318,3.08613526]
[1646691972267,6.0,82.422,82.319,122.1]
[1646691972466,0.25,82.421,82.32,0.25]
[1646691972669,6.59290523,82.42,82.321,6.07]
[1646691972868,0.25,82.419,82.322,0.25]
[1646691973067,35.25453061,82.409,82.323,6.07]
[1646691973269,0.25,82.408,82.324,0.25]
[1646691973471,0.25,82.408,82.325,6.07]
[1646691973669,0.25,82.408,82.305,122.1]
[1646691973670,122.35,82.408,82.317,6.07]
[1646691973868,57.08009725,82.407,82.317,6.07]
[1646691974168,18.2198,82.4,82.306,24.5116]
[1646691974368,0.25,82.399,82.306,18.4416]
[1646691974571,3.08613526,82.399,82.306,18.4416]
[1646691974768,2.83613526,82.398,82.301,6.071]
[1646691974969,0.25,82.397,82.301,6.071]
[1646691975173,18.2235,82.39,82.317,0.25]
[1646691975370,158.55544531,82.388,82.291,6.071]
[1646691975570,0.25,82.387,82.291,6.071]
[1646691975771,0.25,82.387,82.283,2.83613526]
[1646691975975,3.08613526,82.387,82.285,122.1]
[1646691976172,2.83613526,82.386,82.287,122.1]
[1646691976370,0.25,82.385,82.289,122.1]
[1646691976573,0.25,82.385,82.29,6.072]
[1646691976772,3.08613526,82.385,82.291,122.35]
[1646691976972,3.08613526,82.385,82.292,6.072]
[1646691977175,18.2238,82.38,82.3,18.2249]
[1646691977371,6.25,82.379,82.301,6.322]
[1646691977573,9.08613526,82.379,82.301,6.322]
[1646691977776,8.83613526,82.379,82.301,6.322]
[1646691977972,8.83613526,82.379,82.302,122.1]
[1646691978173,8.83613526,82.379,82.31,18.2227]
[1646691978372,8.83613526,82.379,82.311,6.322]
[1646691979574,0.25,82.378,82.311,6.072]
[1646691980974,0.25,82.378,82.312,0.25]
[1646691981174,0.25,82.378,82.313,6.072]
[1646691981374,0.25,82.378,82.314,0.25]
[1646691982476,0.25,82.378,82.3,18.2251]
[1646691982678,18.2256,82.37,82.301,0.25]
[1646691984777,73.26,82.368,82.293,100.0]
[1646691984977,122.1,82.35,82.265,17.81]
[1646691985179,122.1,82.348,82.265,17.81]
[1646691985575,122.1,82.346,82.243,35.92]
[1646691985779,0.25,82.345,82.243,35.92]
[1646691985976,122.1,82.329,82.22,6.075]
[1646691986177,122.1,82.327,82.22,6.075]
[1646691986376,0.25,82.326,82.22,6.075]
[1646691986880,212.02602036,82.325,82.22,6.075]
[1646691987079,18.2434,82.3,82.22,6.075]
[1646691987277,0.25,82.299,82.22,6.075]
[1646691987978,0.25,82.299,82.221,0.25]
[1646691988178,0.25,82.299,82.222,6.078]
[1646691988380,0.25,82.299,82.223,0.25]
[1646691989378,0.25,82.308,82.223,0.25]
[1646691990097,2.83613526,82.307,82.223,0.25]
[1646691990278,6.25,82.306,82.223,0.25]
[1646691990478,18.2406,82.3,82.223,0.25]
[1646691990679,6.0,82.306,82.223,0.25]
[1646691990878,6.0,82.306,82.228,112.2]
[1646691991081,6.0,82.306,82.229,122.35]